Cogmind - Beta 10.1 @@@ ROGUE MODE // 2020.09.30 @ 15:04:09 Player: hittemvvvhard Result: Destroyed by L-31 Rogue with Katana Performance ------------- Evolutions (1) 500 Regions Visited (3) 600 Robots Destroyed (26) 130 Value Destroyed (445) 445 Prototype IDs (0) 0 Alien Tech Used (0) 0 Bonus (60) 60 TOTAL SCORE: 1735 Bonus ------- Follower Combat Kills 60 Cogmind --------- Core Integrity 0/400 Matter 300/300 Energy 100/100 System Corruption 1% Temperature Cool (0) Movement Core (550) Ox10 Location -9/Materials Parts ------- > --- POWER (1) -------- (None) > --- PROPULSION (2) --- (None) > --- UTILITY (4) ------ Large Storage Unit Large Storage Unit Advanced Targeting Computer > --- WEAPON (2) ------- (None) > --- INVENTORY (16) --- Light Ion Engine Light Ion Engine Light Treads Aluminum Leg Disposable Heat Sink Medium Storage Unit Medium Storage Unit Advanced Targeting Computer Medium Armor Plating Medium Armor Plating EM Pulse Cannon EM Pulse Cannon Light Assault Rifle Light Assault Rifle Peak State ------------ > --- POWER ------------ Ion Engine > --- PROPULSION ------- Light Treads Light Treads > --- UTILITY ---------- Large Storage Unit Large Storage Unit Advanced Targeting Computer Medium Armor Plating > --- WEAPON ----------- EM Pulse Cannon EM Pulse Cannon > --- INVENTORY -------- Light Ion Engine Aluminum Leg Aluminum Leg Disposable Heat Sink Small Storage Unit Small Storage Unit Advanced Targeting Computer Medium Armor Plating Medium Armor Plating EM Pulse Cannon EM Pulse Cannon [Rating: 18] Favorites ----------- Power Ion Engine Engine Ion Engine Propulsion Light Treads Treads Light Treads Leg Aluminum Leg Utility Small Storage Unit Storage Small Storage Unit Processor Advanced Targeting Computer Protection Medium Armor Plating Weapon EM Pulse Cannon Energy Cannon EM Pulse Cannon Ballistic Gun Assault Rifle Build | -11 -10 -10 -9 ------- Run | Scr Mat Min Mat Slots Evolved 2 | . . . 2 Power . | . . . . Propulsion . | . . . . Utility 2 | . . . 2 Weapon . | . . . . Parts Attached 18 | 7 . . 11 Power 1 | 1 . . . Engine 1 | 1 . . . Core . | . . . . Reactor . | . . . . Propulsion 5 | 2 . . 3 Treads 3 | 2 . . 1 Leg 2 | . . . 2 Wheel . | . . . . Hover . | . . . . Flight . | . . . . Utility 8 | 2 . . 6 Device . | . . . . Storage 5 | 2 . . 3 Processor 2 | . . . 2 Hackware . | . . . . Protection 1 | . . . 1 Artifact . | . . . . Weapon 4 | 2 . . 2 Energy Gun . | . . . . Energy Cannon 2 | . . . 2 Ballistic Gun 2 | 2 . . . Ballistic Cannon . | . . . . Launcher . | . . . . Special Weapon . | . . . . Impact Weapon . | . . . . Slashing Weapon . | . . . . Piercing Weapon . | . . . . Special Melee Weapon . | . . . . Unidentified Prototypes . | . . . . Parts Lost 7 | . . . 7 Power 1 | . . . 1 Propulsion 3 | . . . 3 Utility 1 | . . . 1 Weapon 2 | . . . 2 Highest Loss Streak 6 | . . . 6 Average Slot Usage (%) 97 | . 100 100 95 Engine 11 | . 14 14 10 Treads 21 | . 28 28 17 Leg 1 | . . . 2 Storage 28 | . 28 28 28 Processor 6 | . . . 11 Protection 2 | . . . 3 Energy Cannon 11 | . . . 19 Ballistic Gun 11 | . 28 28 . Naked Turns . | . . . . Heaviest Build 56 | 16 16 16 56 Greatest Support 40 | 40 40 40 40 Greatest Overweight (x) 2 | 1 . . 2 Average Overweight (x) . | . . . . Largest Inventory Capacity 18 | 8 8 8 18 Average Capacity 10 | 6 8 8 12 Most Carried 16 | 8 8 8 16 Average Carried 9 | 5 7 7 11 Final Capacity 16 | 8 8 8 16 Final Carried 14 | 8 8 8 14 Class Distribution -------------------- 100% | Mutant Dominant Class ---------------- Mutant | -10/Materials Mutant | -10/Mines Mutant | -9/Materials Resources | -11 -10 -10 -9 ----------- Run | Scr Mat Min Mat Matter Collected 483 | 298 . 80 105 Remotely . | . . . . Salvage Created 853 | 143 . 90 620 Parts 46 | 6 . 5 35 Haulers Intercepted 1 | . . . 1 Recyclers Shooed 2 | . . . 2 Parts Field Recycled . | . . . . Retrieved Matter . | . . . . Parts Self-Destructed . | . . . . Prevented . | . . . . Kills | -11 -10 -10 -9 ------- Run | Scr Mat Min Mat Combat Hostiles Destroyed 13 | . . 2 11 Guns 2 | . . 2 . Cannons 6 | . . . 6 AOE 5 | . . . 5 Classes Destroyed 10 | 3 . 1 6 Worker 1 | 1 . . . Builder 3 | . . . 3 Tunneler 1 | 1 . . . Hauler 1 | . . . 1 Recycler 2 | 1 . . 1 Operator 1 | . . . 1 Watcher 4 | . . . 4 Swarmer 7 | . . . 7 Grunt 5 | . . 2 3 Sentry 1 | . . . 1 Best Kill Streak 8 | 2 . 1 8 Combat Bots Only 6 | . . 1 6 Max Kills in Single Turn 3 | 1 . 1 3 Gunslinging . | . . . . Exploded 3 | . . . 3 Melee . | . . . . Uniques/NPCs Destroyed . | . . . . Combat | -11 -10 -10 -9 -------- Run | Scr Mat Min Mat Damage Taken 1660 | . . 219 1441 Core 446 | . . 45 401 Absorbed by Shields . | . . . . Core Remaining (%) 91 | 100 . 82 . Volleys Fired 58 | 7 . 20 31 Largest 2 | 2 . 2 2 Hottest 126 | 40 . 40 126 Shots Fired 109 | 14 . 40 55 Gun 54 | 14 . 40 . Cannon 55 | . . . 55 Launcher . | . . . . Special . | . . . . Kinetic 54 | 14 . 40 . Thermal . | . . . . Explosive . | . . . . Electromagnetic 55 | . . . 55 Robot Hit Streak 9 | 6 . 7 9 Robot Miss Streak 4 | 4 . 3 2 Penetration Max . | . . . . Secondary Targets . | . . . . Shots Hit Robots 73 | 8 . 26 39 Core Hits 36 | 4 . 6 26 Critical Hits 2 | . . 1 1 Critical Kills . | . . . . Critical Parts Destroyed 2 | . . 1 1 Melee Attacks . | . . . . Impact . | . . . . Slashing . | . . . . Piercing . | . . . . Sneak Attacks . | . . . . Combat Hostiles . | . . . . Follow-up Attacks . | . . . . Damage Inflicted 1884 | 89 . 255 1540 Guns 344 | 89 . 255 . Cannons 1091 | . . . 1091 Explosions 449 | . . . 449 Melee . | . . . . Ramming . | . . . . Kinetic 344 | 89 . 255 . Thermal 362 | . . . 362 Explosive . | . . . . Electromagnetic 1178 | . . . 1178 Impact . | . . . . Slashing . | . . . . Piercing . | . . . . Highest Corruption 1 | . . . 1 Average Corruption 1 | . . . 1 Corruption Purged . | . . . . Effects 1 | . . . 1 Energy Discharges 1 | . . . 1 Overload Shots . | . . . . Overflow Damage 86 | . . . 86 Projectiles 85 | . . . 85 Explosions 1 | . . . 1 Melee . | . . . . Knockbacks . | . . . . Impact . | . . . . Kinetic . | . . . . Secondary . | . . . . Self-Inflicted Damage 73 | . . . 73 Shots 3 | . . . 3 Rammed . | . . . . Targets Rammed . | . . . . Kicked . | . . . . Crushed . | . . . . Highest Temperature 256 | . . 18 256 Average Temperature 67 | . . 7 75 Received Heat Transfer 426 | . . 120 306 Siege Activations . | . . . . Robots Corrupted . | . . . . Combat Hostiles . | . . . . Parts Fried 10 | . . . 10 Impact Corruptions . | . . . . Robots Melted . | . . . . Combat Hostiles . | . . . . Parts Melted . | . . . . Heat Transferred 600 | . . . 600 Parts Sabotaged . | . . . . Parts Stolen . | . . . . Parts Stripped . | . . . . Power Chain Reactions 5 | . . . 5 Missiles Intercepted . | . . . . Alert | -11 -10 -10 -9 ------- Run | Scr Mat Min Mat Peak Influence 320 | 15 9 91 320 Initial 35 | . 9 3 35 Average 104 | 6 9 61 168 Maximum Alert Level 1 | . . . 1 Low Security (%) 76 | 100 100 100 53 Level 1 23 | . . . 46 Level 2 . | . . . . Level 3 . | . . . . Level 4 . | . . . . Level 5 . | . . . . High Security . | . . . . Max Security . | . . . . Squads Dispatched 2 | . . 1 1 Investigation 1 | . . . 1 Extermination . | . . . . Reinforcement . | . . . . Assault 1 | . . 1 . Garrison . | . . . . Intercept . | . . . . Construction Impeded . | . . . . Haulers Reinforced . | . . . . Stealth | -11 -10 -10 -9 --------- Run | Scr Mat Min Mat Distress Signals 3 | . . . 3 Communications Jammed . | . . . . Distress Signals . | . . . . Times Spotted 34 | . . 9 25 Peak Tracking Total 4 | . . 4 4 Tactical Retreats 3 | . . 2 1 Traps | -11 -10 -10 -9 ------- Run | Scr Mat Min Mat Traps Triggered 1 | . . . 1 Indirectly . | . . . . Trap Hack Attempts . | . . . . Triggered . | . . . . Disarmed . | . . . . Reprogrammed . | . . . . Reused . | . . . . Traps Extracted . | . . . . Installed . | . . . . Triggered . | . . . . Machines | -11 -10 -10 -9 ---------- Run | Scr Mat Min Mat Machines Disabled 3 | . . . 3 Max in Single Turn 2 | . . . 2 Machines Sabotaged . | . . . . Garrisons Compromised . | . . . . Overloaded Fab Kills . | . . . . Fab Network Shutdowns . | . . . . Hacking | -11 -10 -10 -9 --------- Run | Scr Mat Min Mat Machines Accessed 2 | . . . 2 Terminals 1 | . . . 1 Fabricators . | . . . . Repair Stations . | . . . . Recycling Units . | . . . . Scanalyzers 1 | . . . 1 Garrison Access . | . . . . Total Hacks 5 | . . . 5 Successful 5 | . . . 5 Failed . | . . . . Catastrophic . | . . . . Database Lockouts . | . . . . Manual . | . . . . Terminals 1 | . . . 1 Fabricators . | . . . . Repair Stations . | . . . . Recycling Units . | . . . . Scanalyzers 4 | . . . 4 Garrison Access . | . . . . Terminal Hacks 1 | . . . 1 Investigation Status 1 | . . . 1 Fabricator Hacks . | . . . . Repair Station Hacks . | . . . . Recycling Unit Hacks . | . . . . Scanalyzer 4 | . . . 4 Insert Component 2 | . . . 2 Analyze 2 | . . . 2 Garrison Access Hacks . | . . . . Unauthorized Hacks . | . . . . Terminals . | . . . . Fabricators . | . . . . Repair Stations . | . . . . Recycling Units . | . . . . Scanalyzers . | . . . . Garrison Access . | . . . . Data Cores Recovered . | . . . . Used . | . . . . Hacking Detections 1 | . . . 1 Full Trace Events 1 | . . . 1 Feedback Events . | . . . . Feedback Blocked . | . . . . Robot Schematics Acquired . | . . . . Robots Built . | . . . . Matter . | . . . . Time . | . . . . Total Robot Build Rating . | . . . . Part Schematics Acquired 2 | . . . 2 Parts Built . | . . . . Matter . | . . . . Time . | . . . . Total Part Build Rating . | . . . . Parts Repaired . | . . . . Time . | . . . . Parts Recycled . | . . . . Recycled Matter . | . . . . Retrieved Matter . | . . . . Retrieved Components . | . . . . Parts Scanalyzed 2 | . . . 2 Part Schematics Acquired 2 | . . . 2 Parts Damaged . | . . . . Bothacking | -11 -10 -10 -9 ------------ Run | Scr Mat Min Mat Used RIF Installer . | . . . . Robots Hacked . | . . . . Non-combat . | . . . . Combat . | . . . . Robot Hacks Applied . | . . . . Relay Couplers Released . | . . . . Robots Rewired . | . . . . Allies Hacked . | . . . . Hacks Repelled . | . . . . Allies | -11 -10 -10 -9 -------- Run | Scr Mat Min Mat Total Allies 1 | . . 1 . Largest Group 1 | . . 1 . Highest-Rated Group 31 | . . 31 . Highest-Rated Ally 31 | . . 31 . Total Orders . | . . . . Ally Attacks 7 | . . 7 . Total Damage 147 | . . 147 . Kills 2 | . . 2 . Allies Corrupted . | . . . . Allies Melted . | . . . . Intel | -11 -10 -10 -9 ------- Run | Scr Mat Min Mat Robot Analysis Total . | . . . . Derelict Logs Recovered 1 | . . 1 . Drone Launches . | . . . . Drone Recoveries . | . . . . Exploration | -11 -10 -10 -9 ------------- Run | Scr Mat Min Mat Turns Passed 1102 | 162 55 331 554 Spaces Moved 504 | 82 34 171 217 Core 6 | 6 . . . Treads 482 | 76 34 171 201 Legs 16 | . . . 16 Wheels . | . . . . Hover . | . . . . Flight . | . . . . Fastest Speed 50 | 50 160 160 160 Average Speed 162 | 152 160 160 167 Slowest Speed 200 | 160 160 160 200 Overloaded Moves . | . . . . Propulsion Burnouts . | . . . . Robots Hopped . | . . . . Cave-ins Triggered . | . . . . Exploration Rate (%) 17 | 5 7 39 17 Regions Visited 3 Branch Regions 1 Pre-discovered Areas . | . . . . Known Exits Taken . | . . . . Unknown Exits Taken 3 | 1 1 1 . Scrap Searched 2 | . . 2 . Spaces Dug . | . . . . Terrain Destroyed 14 | . . . 14 Melee . | . . . . Projectile . | . . . . AOE 14 | . . . 14 Terrain Rammed . | . . . . Walls Destroyed . | . . . . Machines Disabled . | . . . . Actions | -11 -10 -10 -9 --------- Run | Scr Mat Min Mat Total 690 | 103 35 194 358 Wait 61 | . . . 61 Move 501 | 81 33 170 217 Hop . | . . . . Pick Up 32 | 8 1 2 21 Fast Attach 12 | 7 . . 5 Attach 6 | . . . 6 Detach 4 | . . . 4 Swap . | . . . . Drop 16 | . 1 2 13 Fire 58 | 7 . 20 31 Melee . | . . . . Ram . | . . . . Kick . | . . . . Crush . | . . . . Escape Stasis . | . . . . Rewire . | . . . . Trap . | . . . . Miscellaneous . | . . . . Route ------- -11/Scrapyard -10/Materials -10/Mines -9/Materials History --------- Turn | Location | Event 11 | -11/Scrapyard | Discovered new exit (range 15) 163 | -11/Scrapyard | Entered Materials 163 | -10/Materials | Discovered new exit (range 7) 218 | -10/Materials | Entered Mines 306 | -10/Mines | Build established: Mutant 313 | -10/Mines | Met a Derelict testing a Signal Generator 474 | -10/Mines | Discovered new exit (range 8) 500 | -10/Mines | Learned Materials stockpile data 549 | -10/Mines | Entered Materials 549 | -9/Materials | Evolved 2 slots: Utility x2 1086 | -9/Materials | Core integrity fell below 50% 1097 | -9/Materials | Core integrity fell below 20% 1103 | -9/Materials | Destroyed by L-31 Rogue with Katana Last Messages --------------- 01060_ U-05 Engineer builds a Wall. 01061_ U-05 Engineer lays Concrete. 01061_ EM Pulse Cannon destroyed. 01062_ U-05 Engineer lays Concrete. 01065_ EM Pulse Cannon destroyed. 01066_ U-05 Engineer lays Concrete. 01067_ U-05 Engineer builds a Wall. 01069_ U-05 Engineer lays Concrete. 01071_ U-05 Engineer builds a Wall. 01071_ Ion Engine destroyed. 01072_ U-05 Engineer builds a Wall. 01073_ U-05 Engineer lays Concrete. 01075_ Med. Armor Plating destroyed. 01075_ U-05 Engineer lays Concrete. 01075_ S-10 Pest destroyed. 01075_ U-05 Engineer lays Concrete. 01077_ Aluminum Leg destroyed. 01078_ U-05 Engineer lays Concrete. 01092_ U-05 Engineer destroyed. 01093_ Aluminum Leg destroyed. Map ----- +----------------------------------------------------+ | ?????????????????????????????????????????????????? | | ?????????????????????????????????????????????????? | | ?????????????????????????????????????????????????? | | ?????????????????????????????????????????????????? | | ?????????????????????????????????????????????????? | | ?????????????????????????????????????????????????? | | ?????????????????????????????????????????????????? | | ?????????????????????????????????????????????????? | | ?????????????????????????????????????????????????? | | ?????????????????????????????????????????????????? | | ?????????????????????????????????????????????????? | | ?????????????????????????????????????????????????? | | ?????????????????????????????????????????????????? | | ??????????????????????##########?????????????????? | | ??????????????????????# #?????????????????? | | ??????????????????????# #?????????????????? | | ??????????????????????# #?????????????????? | | ?########?????????????# #?????????????????? | | ?#!! !!#?????????????# #?????????????????? | | ?# * !!#?????????????# #?????????????????? | | ?# #?????????????# #?????????????????? | | ## #?????????????# % #?????????????????? | | # #?????????????# %= = #???######????????? | | # #?????????????#####+####??## ##???????? | | # #################% %!|##??#! #???????? | | ##### u *%!%@l%%!##??#! #???????? | | # =| g!g!##### ###?????? | | """ # a [%!! % | | """ + ################# *=##### | | # #???????????????## ##???# ! | | # #????????????????# #????# =%########### | | % # #????????????????# #????# #?!????????? | | # #???????########## #????# %#??????????? | | * # #???????# # #????# =/??????????? | | ##### #???????# """ # #????# # ?????????? | | ##### #???#####] """ # #????# # ????????? | | #??? # """ #a #????# #? ????????? | | #??? # ! # #????# #?##???????? | | #??? # # t#????# #??????????? | | +#### #?? # + #????# #??????????? | | ??# #?? ?# # #????? #??????????? | | # ^#?? ??# [ # #????? #??????????? | | + ###+############## #????? ???????????? | | # #???????????????????? | | ??# $ #???????????????????? | | ????# % #???????????????????? | | ????##############+###########???????????????????? | | ??????????????# =#??????????????????????????? | | ??????????????# "" #??????????????????????????? | | ??????????????# "T #??????????????????????????? | +----------------------------------------------------+ Best States ------------- Heat Dissipation 28 Energy Generation 10 Energy Capacity 250 Matter Stores 300 Matter Capacity 300 Sight Range 16 Terrain Scan Density 10 Armor Coverage 225 Evasion (%) 40 Targeting Accuracy 8 Recoil Reduction 2 Item Schematics ----------------- Lgt. Assault Rifle | -9/Materials | Scanalyzed Aluminum Leg | -9/Materials | Scanalyzed Robot Schematics ------------------ None Fabricated ------------ Nothing Alien Tech Used ----------------- None Achievements -------------- None Challenges ------------ None Game ------ Seed MasterLobotomyLoader Manual? 0 Play Time 00:22:14 Cumulative 2.8 hours Start 2020.09.29 @ 22:11:02 End 2020.09.30 @ 15:04:09 Sessions 3 Manual Loads 0 Difficulty Rogue Special Mode None Game No. 6 Rogue 6 Adventurer 0 Explorer 0 Win Type - Total 0 Types 0/0/0/0/0/0/0/0/0 Lore% 1 Gallery% 9 Achievement% 10 Wizard Run 0 Options --------- ASCII 0 Keyboard 1 Movement Numpad Keybinds 0 Fullscreen 2 Font 18/X11Bold Map View 76x50 Tactical HUD 1 Map Filters NONE Filters NONE Steam 1 RUN: 88170584-3e71-4f36-b1c8-6490f208dd1b